[Event "Late-Titled-Tuesday-Blitz-March-12-2024"]
[Site "Chess.com"]
[Date "2024.03.12"]
[Round "7"]
[White "Mikayel99"]
[Black "Gryffindorac8"]
[Result "1-0"]
[WhiteElo "2563"]
[BlackElo "2374"]
[TimeControl "180+1"]
[EndTime "15:17:42 PDT"]
[Termination "Mikayel99 won by resignation"]

1. e4 {[%clk 0:02:59.4]} 1... c5 {[%clk 0:02:59.7]} 2. Nf3 {[%clk 0:02:58.6]}
2... d6 {[%clk 0:02:59.5]} 3. d4 {[%clk 0:02:59]} 3... cxd4 {[%clk 0:02:59.9]}
4. Nxd4 {[%clk 0:02:59.9]} 4... Nf6 {[%clk 0:03:00]} 5. Nc3 {[%clk 0:03:00.6]}
5... a6 {[%clk 0:03:00.2]} 6. f3 {[%clk 0:03:01.3]} 6... e5 {[%clk 0:03:00.4]}
7. Nb3 {[%clk 0:03:01.6]} 7... Be7 {[%clk 0:03:00.5]} 8. Be3 {[%clk 0:03:02.2]}
8... Be6 {[%clk 0:02:59.9]} 9. Be2 {[%clk 0:02:56.7]} 9... Nbd7 {[%clk
0:02:52.9]} 10. Nd5 {[%clk 0:02:56.7]} 10... Bxd5 {[%clk 0:02:37.8]} 11. exd5
{[%clk 0:02:57.6]} 11... O-O {[%clk 0:02:36.9]} 12. a4 {[%clk 0:02:52.1]} 12...
b6 {[%clk 0:02:26.9]} 13. a5 {[%clk 0:02:42.4]} 13... b5 {[%clk 0:02:24.6]} 14.
O-O {[%clk 0:02:42.2]} 14... Rc8 {[%clk 0:02:14.2]} 15. c3 {[%clk 0:02:41.2]}
15... Qc7 {[%clk 0:02:09.2]} 16. Nc1 {[%clk 0:02:33.7]} 16... Qb7 {[%clk
0:01:31.4]} 17. Nd3 {[%clk 0:02:15.4]} 17... Nxd5 {[%clk 0:01:27.4]} 18. Bf2
{[%clk 0:02:15.8]} 18... f5 {[%clk 0:01:25.2]} 19. Qb3 {[%clk 0:02:14.5]} 19...
Kh8 {[%clk 0:01:21.7]} 20. Rfd1 {[%clk 0:02:13.9]} 20... N7f6 {[%clk 0:01:19.3]}
21. c4 {[%clk 0:02:08.1]} 21... Nc7 {[%clk 0:01:08.6]} 22. c5 {[%clk 0:02:02.3]}
22... Ncd5 {[%clk 0:00:45.3]} 23. cxd6 {[%clk 0:01:53.3]} 23... Bxd6 {[%clk
0:00:46.2]} 24. Rac1 {[%clk 0:01:48.8]} 24... Rcd8 {[%clk 0:00:43.5]} 25. Nc5
{[%clk 0:01:43.4]} 25... Qe7 {[%clk 0:00:39.8]} 26. Rxd5 {[%clk 0:01:37.1]}
26... Nxd5 {[%clk 0:00:38]} 27. Qxd5 {[%clk 0:01:38]} 27... e4 {[%clk
0:00:36.3]} 28. Ne6 {[%clk 0:01:32.9]} 28... Bxh2+ {[%clk 0:00:35.4]} 29. Kxh2
{[%clk 0:01:29.6]} 29... Rxd5 {[%clk 0:00:35.4]} 30. Nxf8 {[%clk 0:01:27.3]}
30... Qxf8 {[%clk 0:00:32.6]} 31. fxe4 {[%clk 0:01:25.9]} 31... fxe4 {[%clk
0:00:31.6]} 32. Bg3 {[%clk 0:01:22.7]} 32... h6 {[%clk 0:00:29.6]} 33. Bg4
{[%clk 0:01:23.1]} 33... Rd8 {[%clk 0:00:25.7]} 34. Rc6 {[%clk 0:01:21.2]} 34...
Re8 {[%clk 0:00:20.5]} 35. Rxa6 {[%clk 0:01:12.6]} 35... e3 {[%clk 0:00:20.8]}
36. Be2 {[%clk 0:01:13]} 36... Qb4 {[%clk 0:00:20.8]} 37. Rb6 {[%clk 0:01:05.7]}
37... Qxa5 {[%clk 0:00:19.5]} 38. Rxb5 {[%clk 0:01:02.7]} 38... Qd2 {[%clk
0:00:19.6]} 39. Bh5 {[%clk 0:01:02.2]} 39... Rd8 {[%clk 0:00:17.1]} 40. Re5
{[%clk 0:00:44.7]} 40... Rd5 {[%clk 0:00:17.1]} 41. Re8+ {[%clk 0:00:43.8]}
41... Kh7 {[%clk 0:00:17]} 42. Bf3 {[%clk 0:00:42.5]} 42... Rd4 {[%clk
0:00:14.4]} 43. b3 {[%clk 0:00:33.5]} 43... h5 {[%clk 0:00:11.6]} 44. Bxh5
{[%clk 0:00:23.4]} 44... Qd3 {[%clk 0:00:11.4]} 45. Bf3 {[%clk 0:00:19.9]} 45...
Qxb3 {[%clk 0:00:10.6]} 46. Be4+ {[%clk 0:00:17.9]} 46... Rxe4 {[%clk
0:00:10.3]} 47. Rxe4 {[%clk 0:00:18.7]} 47... Qd3 {[%clk 0:00:10.4]} 48. Re5
{[%clk 0:00:17.5]} 48... e2 {[%clk 0:00:10.6]} 49. Re7 {[%clk 0:00:11.2]} 49...
Kg6 {[%clk 0:00:09.3]} 50. Re8 {[%clk 0:00:09.7]} 50... Qd1 {[%clk 0:00:08.7]}
51. Re6+ {[%clk 0:00:07.8]} 51... Kf7 {[%clk 0:00:08]} 52. Re3 {[%clk
0:00:06.7]} 52... Qf1 {[%clk 0:00:08.4]} 53. Rf3+ {[%clk 0:00:05.6]} 53... Qxf3
{[%clk 0:00:07.3]} 54. gxf3 {[%clk 0:00:06.5]} 54... Kg6 {[%clk 0:00:07.9]} 55.
Kg2 {[%clk 0:00:06.8]} 55... Kf5 {[%clk 0:00:08.8]} 56. Kf2 {[%clk 0:00:07.4]}
56... g5 {[%clk 0:00:09.3]} 57. Kxe2 {[%clk 0:00:07.7]} 57... g4 {[%clk
0:00:08.7]} 58. f4 {[%clk 0:00:08.2]} 58... Ke4 {[%clk 0:00:09.2]} 59. Kf2
{[%clk 0:00:08.9]} 59... Kd3 {[%clk 0:00:09.5]} 60. Bh4 {[%clk 0:00:08.2]} 60...
Ke4 {[%clk 0:00:08.1]} 61. Bg5 {[%clk 0:00:08.9]} 61... Kf5 {[%clk 0:00:07.7]}
62. Kg3 {[%clk 0:00:09.5]} 1-0

[Event "Late-Titled-Tuesday-Blitz-March-12-2024"]
[Site "Chess.com"]
[Date "2024.03.12"]
[Round "7"]
[White "waltereador"]
[Black "Redzishchess"]
[Result "0-1"]
[WhiteElo "2326"]
[BlackElo "2517"]
[TimeControl "180+1"]
[EndTime "15:17:42 PDT"]
[Termination "Redzishchess won by checkmate"]

1. e4 {[%clk 0:03:00.9]} 1... c5 {[%clk 0:02:59.8]} 2. b4 {[%clk 0:02:59.5]}
2... e5 {[%clk 0:02:58.6]} 3. bxc5 {[%clk 0:02:58.8]} 3... Bxc5 {[%clk
0:02:59.5]} 4. Nf3 {[%clk 0:02:58.5]} 4... Nc6 {[%clk 0:02:59.6]} 5. Nc3 {[%clk
0:02:58.5]} 5... Nf6 {[%clk 0:02:57.1]} 6. Bc4 {[%clk 0:02:57.3]} 6... O-O
{[%clk 0:02:55]} 7. O-O {[%clk 0:02:55.6]} 7... d6 {[%clk 0:02:54.4]} 8. h3
{[%clk 0:02:56]} 8... Be6 {[%clk 0:02:47.1]} 9. Bd5 {[%clk 0:02:55.8]} 9... Bxd5
{[%clk 0:02:41.2]} 10. exd5 {[%clk 0:02:55.2]} 10... Nd4 {[%clk 0:02:41.1]} 11.
Rb1 {[%clk 0:02:52.6]} 11... Qd7 {[%clk 0:01:59.5]} 12. d3 {[%clk 0:02:48.2]}
12... h6 {[%clk 0:01:47.2]} 13. Ne4 {[%clk 0:02:43.1]} 13... Nxd5 {[%clk
0:01:37.4]} 14. Nxe5 {[%clk 0:02:35.6]} 14... dxe5 {[%clk 0:01:21.7]} 15. Nxc5
{[%clk 0:02:35.5]} 15... Qc6 {[%clk 0:01:20.3]} 16. Ne4 {[%clk 0:02:32.2]} 16...
f5 {[%clk 0:01:19.4]} 17. c4 {[%clk 0:02:31.5]} 17... fxe4 {[%clk 0:00:50]} 18.
cxd5 {[%clk 0:02:30.9]} 18... Qxd5 {[%clk 0:00:50.9]} 19. dxe4 {[%clk
0:02:30.6]} 19... Qxe4 {[%clk 0:00:51.8]} 20. Be3 {[%clk 0:02:26.9]} 20... Rad8
{[%clk 0:00:49.1]} 21. Bxd4 {[%clk 0:02:26.9]} 21... exd4 {[%clk 0:00:47.7]} 22.
Qb3+ {[%clk 0:02:25.6]} 22... Rf7 {[%clk 0:00:45.3]} 23. Rbe1 {[%clk 0:02:17.1]}
23... Qc6 {[%clk 0:00:32.8]} 24. Re7 {[%clk 0:02:14.5]} 24... Rf8 {[%clk
0:00:26.6]} 25. Rfe1 {[%clk 0:02:14.2]} 25... Qf6 {[%clk 0:00:24.3]} 26. Rxf7
{[%clk 0:02:11.4]} 26... Qxf7 {[%clk 0:00:20.9]} 27. Rd1 {[%clk 0:01:48.3]}
27... Qxb3 {[%clk 0:00:20.3]} 28. axb3 {[%clk 0:01:47.7]} 28... Rd8 {[%clk
0:00:20.7]} 29. Kf1 {[%clk 0:01:48]} 29... Kf7 {[%clk 0:00:20.7]} 30. Ke2 {[%clk
0:01:48.7]} 30... Ke6 {[%clk 0:00:21.3]} 31. Kd3 {[%clk 0:01:49.4]} 31... Kd5
{[%clk 0:00:21.9]} 32. Ra1 {[%clk 0:01:49.6]} 32... Rc8 {[%clk 0:00:18.7]} 33.
Rxa7 {[%clk 0:01:48.1]} 33... Rc3+ {[%clk 0:00:18.7]} 34. Kd2 {[%clk 0:01:47.9]}
34... Rxb3 {[%clk 0:00:19.6]} 35. Ra5+ {[%clk 0:01:47.2]} 35... Ke4 {[%clk
0:00:14.2]} 36. f3+ {[%clk 0:01:37.1]} 36... Kf4 {[%clk 0:00:14]} 37. Rd5 {[%clk
0:01:37.5]} 37... Rb2+ {[%clk 0:00:12]} 38. Kd3 {[%clk 0:01:37.4]} 38... Rxg2
{[%clk 0:00:12.4]} 39. Rxd4+ {[%clk 0:01:36]} 39... Kxf3 {[%clk 0:00:13]} 40.
Rd7 {[%clk 0:01:36.2]} 40... Rg3 {[%clk 0:00:09.7]} 41. Rxb7 {[%clk 0:01:32.1]}
41... Kg2+ {[%clk 0:00:09.9]} 42. Ke2 {[%clk 0:01:31.8]} 42... Kxh3 {[%clk
0:00:10.8]} 43. Kf2 {[%clk 0:01:31.2]} 43... h5 {[%clk 0:00:09.3]} 44. Rb5
{[%clk 0:01:29.7]} 44... h4 {[%clk 0:00:09.4]} 45. Rb1 {[%clk 0:01:27.6]} 45...
g5 {[%clk 0:00:08.5]} 46. Rc1 {[%clk 0:01:25.3]} 46... Ra3 {[%clk 0:00:07.5]}
47. Rh1+ {[%clk 0:01:23.7]} 47... Kg4 {[%clk 0:00:07.8]} 48. Rg1+ {[%clk
0:01:24]} 48... Kf4 {[%clk 0:00:07.1]} 49. Rb1 {[%clk 0:01:23.8]} 49... Ra2+
{[%clk 0:00:07.2]} 50. Kg1 {[%clk 0:01:24.1]} 50... Kg4 {[%clk 0:00:02.9]} 51.
Rb4+ {[%clk 0:01:23.4]} 51... Kg3 {[%clk 0:00:02.8]} 52. Rb3+ {[%clk 0:01:23.7]}
52... Kg4 {[%clk 0:00:03.3]} 53. Rb4+ {[%clk 0:01:23.5]} 53... Kh5 {[%clk
0:00:03.8]} 54. Rb1 {[%clk 0:01:23]} 54... h3 {[%clk 0:00:03.6]} 55. Rb5 {[%clk
0:01:21]} 55... Kh4 {[%clk 0:00:03.5]} 56. Rb4+ {[%clk 0:01:20.8]} 56... g4
{[%clk 0:00:03.9]} 57. Rb1 {[%clk 0:01:21]} 57... Rc2 {[%clk 0:00:03.7]} 58. Rd1
{[%clk 0:01:20.5]} 58... Rc3 {[%clk 0:00:03.9]} 59. Rb1 {[%clk 0:01:20.6]} 59...
Kg3 {[%clk 0:00:04.1]} 60. Re1 {[%clk 0:01:18.8]} 60... Rd3 {[%clk 0:00:04.1]}
61. Kh1 {[%clk 0:01:14.1]} 61... Kf3 {[%clk 0:00:03.3]} 62. Kg1 {[%clk
0:01:12.6]} 62... Rd2 {[%clk 0:00:03.3]} 63. Rf1+ {[%clk 0:01:11.3]} 63... Kg3
{[%clk 0:00:02.6]} 64. Kh1 {[%clk 0:01:11.5]} 64... Rh2+ {[%clk 0:00:02.2]} 65.
Kg1 {[%clk 0:01:11.8]} 65... Rg2+ {[%clk 0:00:03.1]} 66. Kh1 {[%clk 0:01:12.2]}
66... Rd2 {[%clk 0:00:03.8]} 67. Rg1+ {[%clk 0:01:11.8]} 67... Kh4 {[%clk
0:00:04.2]} 68. Re1 {[%clk 0:01:10.1]} 68... Rd4 {[%clk 0:00:04.4]} 69. Kg1
{[%clk 0:01:09.5]} 69... g3 {[%clk 0:00:04.5]} 70. Kh1 {[%clk 0:01:08.5]} 70...
Kg4 {[%clk 0:00:04.3]} 71. Kg1 {[%clk 0:01:08.2]} 71... Kf4 {[%clk 0:00:04.2]}
72. Rf1+ {[%clk 0:01:08.1]} 72... Kg4 {[%clk 0:00:03.9]} 73. Re1 {[%clk
0:01:08.5]} 73... Kf3 {[%clk 0:00:03.7]} 74. Rf1+ {[%clk 0:01:08.6]} 74... Ke2
{[%clk 0:00:03.6]} 75. Rb1 {[%clk 0:01:03.7]} 75... Rd1+ {[%clk 0:00:03.2]} 76.
Rxd1 {[%clk 0:01:04.5]} 76... Kxd1 {[%clk 0:00:04.1]} 77. Kh1 {[%clk 0:01:05]}
77... Ke2 {[%clk 0:00:04.1]} 78. Kg1 {[%clk 0:01:05.9]} 78... Kf3 {[%clk
0:00:04.4]} 79. Kh1 {[%clk 0:01:06.8]} 79... Kg4 {[%clk 0:00:04.7]} 80. Kg1
{[%clk 0:01:07.7]} 80... Kf3 {[%clk 0:00:04.2]} 81. Kh1 {[%clk 0:01:08.6]} 81...
g2+ {[%clk 0:00:04.6]} 82. Kg1 {[%clk 0:01:09.5]} 82... h2+ {[%clk 0:00:05]} 83.
Kxh2 {[%clk 0:01:09.8]} 83... Kf2 {[%clk 0:00:05.9]} 84. Kh3 {[%clk 0:01:09.6]}
84... g1=Q {[%clk 0:00:06.8]} 85. Kh4 {[%clk 0:01:10.1]} 85... Qg6 {[%clk
0:00:07.4]} 86. Kh3 {[%clk 0:01:10.1]} 86... Qg3# {[%clk 0:00:08.3]} 0-1

[Event "Late-Titled-Tuesday-Blitz-March-12-2024"]
[Site "Chess.com"]
[Date "2024.03.12"]
[Round "7"]
[White "KyronGriffith"]
[Black "Machidon"]
[Result "1-0"]
[WhiteElo "2692"]
[BlackElo "2505"]
[TimeControl "180+1"]
[EndTime "15:18:02 PDT"]
[Termination "KyronGriffith won on time"]

1. e4 {[%clk 0:03:00.9]} 1... c6 {[%clk 0:02:59.7]} 2. d4 {[%clk 0:03:01]} 2...
d5 {[%clk 0:02:59.9]} 3. e5 {[%clk 0:03:01.6]} 3... Bf5 {[%clk 0:02:59.8]} 4. h4
{[%clk 0:03:01.2]} 4... h5 {[%clk 0:02:58]} 5. Bd3 {[%clk 0:03:01.7]} 5... Bxd3
{[%clk 0:02:57.5]} 6. Qxd3 {[%clk 0:03:02.6]} 6... Qa5+ {[%clk 0:02:56]} 7. Nd2
{[%clk 0:03:01.6]} 7... e6 {[%clk 0:02:55.8]} 8. Ne2 {[%clk 0:03:00.3]} 8... Ne7
{[%clk 0:02:52.5]} 9. g3 {[%clk 0:02:54.9]} 9... Nf5 {[%clk 0:02:51.7]} 10. O-O
{[%clk 0:02:45.4]} 10... Qa6 {[%clk 0:02:46.7]} 11. Qf3 {[%clk 0:02:42.9]} 11...
c5 {[%clk 0:02:42.8]} 12. c4 {[%clk 0:02:35.3]} 12... Nc6 {[%clk 0:02:23.4]} 13.
cxd5 {[%clk 0:02:05.3]} 13... Ncxd4 {[%clk 0:02:22.1]} 14. Nxd4 {[%clk
0:02:05.5]} 14... Nxd4 {[%clk 0:02:21.1]} 15. Qe4 {[%clk 0:01:59.5]} 15... exd5
{[%clk 0:02:18.5]} 16. Qg2 {[%clk 0:01:25.2]} 16... O-O-O {[%clk 0:02:13.1]} 17.
Nf3 {[%clk 0:01:20]} 17... Ne6 {[%clk 0:02:07.1]} 18. Ng5 {[%clk 0:01:16.3]}
18... Rd7 {[%clk 0:02:02.8]} 19. Rd1 {[%clk 0:01:13]} 19... d4 {[%clk
0:02:02.3]} 20. Bd2 {[%clk 0:01:01.4]} 20... Kb8 {[%clk 0:01:49.1]} 21. a3
{[%clk 0:01:00.7]} 21... Nxg5 {[%clk 0:01:28.9]} 22. Bxg5 {[%clk 0:01:01.6]}
22... Be7 {[%clk 0:01:28.8]} 23. Bxe7 {[%clk 0:00:59.3]} 23... Rxe7 {[%clk
0:01:29.7]} 24. Qd5 {[%clk 0:00:53.2]} 24... Rc7 {[%clk 0:01:08.4]} 25. Rac1
{[%clk 0:00:51.4]} 25... Rd8 {[%clk 0:01:08.5]} 26. Qf3 {[%clk 0:00:49.2]} 26...
Qe6 {[%clk 0:01:06.3]} 27. Qxh5 {[%clk 0:00:48.7]} 27... c4 {[%clk 0:01:05]} 28.
Qf3 {[%clk 0:00:47.1]} 28... Qxe5 {[%clk 0:01:01.8]} 29. Re1 {[%clk 0:00:47]}
29... Qf6 {[%clk 0:00:56.9]} 30. Qxf6 {[%clk 0:00:43]} 30... gxf6 {[%clk
0:00:57.8]} 31. Kf1 {[%clk 0:00:41.6]} 31... d3 {[%clk 0:00:56.5]} 32. Rcd1
{[%clk 0:00:37.9]} 32... b5 {[%clk 0:00:56.1]} 33. Re3 {[%clk 0:00:36.5]} 33...
a5 {[%clk 0:00:55.4]} 34. Rf3 {[%clk 0:00:34.3]} 34... Rd6 {[%clk 0:00:53.8]}
35. h5 {[%clk 0:00:34.3]} 35... b4 {[%clk 0:00:50.6]} 36. axb4 {[%clk
0:00:34.2]} 36... axb4 {[%clk 0:00:51.5]} 37. h6 {[%clk 0:00:28.3]} 37... Rc8
{[%clk 0:00:38.2]} 38. Rf4 {[%clk 0:00:28.6]} 38... Ka7 {[%clk 0:00:28.9]} 39.
h7 {[%clk 0:00:28.5]} 39... c3 {[%clk 0:00:22.7]} 40. bxc3 {[%clk 0:00:18]}
40... bxc3 {[%clk 0:00:22.8]} 41. Ra4+ {[%clk 0:00:18.7]} 41... Ra6 {[%clk
0:00:20]} 42. Rxa6+ {[%clk 0:00:17.6]} 42... Kxa6 {[%clk 0:00:20.9]} 43. h8=Q
{[%clk 0:00:16.9]} 43... Rxh8 {[%clk 0:00:20.4]} 44. Rxd3 {[%clk 0:00:17.3]}
44... Rc8 {[%clk 0:00:18.8]} 45. Rd1 {[%clk 0:00:17]} 45... Kb5 {[%clk
0:00:18.6]} 46. Ke2 {[%clk 0:00:17.3]} 46... Kc4 {[%clk 0:00:17.7]} 47. Rd6
{[%clk 0:00:11.6]} 47... Re8+ {[%clk 0:00:09.5]} 48. Kd1 {[%clk 0:00:12]} 48...
Re6 {[%clk 0:00:09.4]} 49. Rd7 {[%clk 0:00:12.1]} 49... Re5 {[%clk 0:00:06.9]}
50. Rxf7 {[%clk 0:00:10.1]} 50... Rd5+ {[%clk 0:00:07.2]} 51. Kc1 {[%clk
0:00:10]} 51... f5 {[%clk 0:00:07.7]} 52. f3 {[%clk 0:00:09.3]} 52... Kd3 {[%clk
0:00:07.8]} 53. g4 {[%clk 0:00:08]} 53... fxg4 {[%clk 0:00:07.8]} 54. fxg4
{[%clk 0:00:08.9]} 54... Re5 {[%clk 0:00:08.2]} 55. Rf3+ {[%clk 0:00:08.4]}
55... Kc4 {[%clk 0:00:07.2]} 56. Rg3 {[%clk 0:00:08.3]} 56... Re2 {[%clk
0:00:07.3]} 57. g5 {[%clk 0:00:04.6]} 57... Kb3 {[%clk 0:00:07.5]} 58. Kd1
{[%clk 0:00:05.3]} 58... Ra2 {[%clk 0:00:07.3]} 59. g6 {[%clk 0:00:04.6]} 59...
Ra1+ {[%clk 0:00:06]} 60. Ke2 {[%clk 0:00:05.3]} 60... Kb2 {[%clk 0:00:06]} 61.
g7 {[%clk 0:00:05.3]} 61... Ra8 {[%clk 0:00:06]} 62. g8=Q {[%clk 0:00:05.3]}
62... Rxg8 {[%clk 0:00:05.3]} 63. Rxg8 {[%clk 0:00:06.2]} 63... c2 {[%clk
0:00:06.1]} 64. Rb8+ {[%clk 0:00:06.7]} 64... Kc3 {[%clk 0:00:06.5]} 65. Rc8+
{[%clk 0:00:06.7]} 65... Kb2 {[%clk 0:00:06.8]} 66. Kd2 {[%clk 0:00:07.4]} 66...
c1=Q+ {[%clk 0:00:06.1]} 67. Rxc1 {[%clk 0:00:08.3]} 1-0

[Event "Late-Titled-Tuesday-Blitz-March-12-2024"]
[Site "Chess.com"]
[Date "2024.03.12"]
[Round "7"]
[White "KuzubovYuriy"]
[Black "DenLaz"]
[Result "0-1"]
[WhiteElo "2910"]
[BlackElo "3058"]
[TimeControl "180+1"]
[EndTime "15:18:04 PDT"]
[Termination "DenLaz won by resignation"]

1. d4 {[%clk 0:03:00.9]} 1... Nf6 {[%clk 0:02:58.9]} 2. Nf3 {[%clk 0:03:01.5]}
2... d5 {[%clk 0:02:57.9]} 3. c4 {[%clk 0:03:01.7]} 3... e6 {[%clk 0:02:58.6]}
4. Nc3 {[%clk 0:03:01.6]} 4... Be7 {[%clk 0:02:59.2]} 5. cxd5 {[%clk 0:03:01]}
5... exd5 {[%clk 0:02:59.3]} 6. Bf4 {[%clk 0:03:01.6]} 6... c6 {[%clk
0:02:59.8]} 7. e3 {[%clk 0:03:01.4]} 7... Nh5 {[%clk 0:02:59.3]} 8. Qc2 {[%clk
0:03:00.2]} 8... Nxf4 {[%clk 0:02:57.7]} 9. exf4 {[%clk 0:03:00.3]} 9... Bd6
{[%clk 0:02:58.4]} 10. g3 {[%clk 0:02:50.2]} 10... Bg4 {[%clk 0:02:57]} 11. Ne5
{[%clk 0:02:41.8]} 11... Qe7 {[%clk 0:02:54]} 12. Be2 {[%clk 0:02:41.7]} 12...
Bxe2 {[%clk 0:02:52.9]} 13. Nxe2 {[%clk 0:02:42.3]} 13... O-O {[%clk 0:02:46.2]}
14. O-O {[%clk 0:02:39.8]} 14... f6 {[%clk 0:02:45.3]} 15. Ng4 {[%clk
0:02:36.8]} 15... Nd7 {[%clk 0:02:45.4]} 16. Ne3 {[%clk 0:02:33.5]} 16... Qf7
{[%clk 0:02:45.1]} 17. Rad1 {[%clk 0:02:27.5]} 17... Rfe8 {[%clk 0:02:44.8]} 18.
Kg2 {[%clk 0:02:25.2]} 18... Bf8 {[%clk 0:02:44.7]} 19. Nc1 {[%clk 0:02:22.6]}
19... Nb6 {[%clk 0:02:44.7]} 20. Nd3 {[%clk 0:02:14.9]} 20... Nc4 {[%clk
0:02:44.3]} 21. Nf5 {[%clk 0:01:43.9]} 21... Qg6 {[%clk 0:02:37.4]} 22. Nh4
{[%clk 0:01:36.5]} 22... Qe4+ {[%clk 0:02:36.9]} 23. Nf3 {[%clk 0:01:33.8]}
23... Qe2 {[%clk 0:02:37.4]} 24. Qxe2 {[%clk 0:01:26.4]} 24... Rxe2 {[%clk
0:02:38.3]} 25. Rfe1 {[%clk 0:01:18.1]} 25... Rxe1 {[%clk 0:02:28.4]} 26. Nfxe1
{[%clk 0:01:17]} 26... Kf7 {[%clk 0:02:28.3]} 27. Nc2 {[%clk 0:01:16.2]} 27...
a5 {[%clk 0:02:27.2]} 28. f3 {[%clk 0:01:11.9]} 28... Be7 {[%clk 0:02:23.7]} 29.
Kf2 {[%clk 0:01:10.3]} 29... Bd8 {[%clk 0:02:24.2]} 30. b3 {[%clk 0:01:07.7]}
30... Nd6 {[%clk 0:02:23.8]} 31. g4 {[%clk 0:01:05.8]} 31... Bb6 {[%clk
0:02:24.2]} 32. a4 {[%clk 0:01:04]} 32... g6 {[%clk 0:02:21.1]} 33. h3 {[%clk
0:01:01.7]} 33... Ne8 {[%clk 0:02:19.1]} 34. Rb1 {[%clk 0:00:46.6]} 34... Bd8
{[%clk 0:02:08.7]} 35. Nc1 {[%clk 0:00:45.7]} 35... Bc7 {[%clk 0:02:05.7]} 36.
Ke3 {[%clk 0:00:44.8]} 36... Ng7 {[%clk 0:02:05.1]} 37. Ne2 {[%clk 0:00:36]}
37... Ne6 {[%clk 0:02:04.7]} 38. b4 {[%clk 0:00:32.1]} 38... axb4 {[%clk
0:02:01.7]} 39. Rxb4 {[%clk 0:00:32.2]} 39... b6 {[%clk 0:02:02.3]} 40. Kd3
{[%clk 0:00:14.8]} 40... Ra7 {[%clk 0:01:55.7]} 41. f5 {[%clk 0:00:14.8]} 41...
gxf5 {[%clk 0:01:55.5]} 42. gxf5 {[%clk 0:00:15.7]} 42... Ng7 {[%clk 0:01:54.1]}
43. Ne3 {[%clk 0:00:16.1]} 43... Nh5 {[%clk 0:01:42.8]} 44. h4 {[%clk
0:00:13.6]} 44... Ke7 {[%clk 0:01:40.8]} 45. Nd1 {[%clk 0:00:12.7]} 45... Kd7
{[%clk 0:01:15.2]} 46. Ne3 {[%clk 0:00:12.9]} 46... Ra6 {[%clk 0:01:12.3]} 47.
Ng4 {[%clk 0:00:12.6]} 47... Bd8 {[%clk 0:01:03.3]} 48. Ke3 {[%clk 0:00:10.7]}
48... Kc7 {[%clk 0:00:57.4]} 49. Nc3 {[%clk 0:00:10.3]} 49... Ng7 {[%clk
0:00:57.1]} 50. Nh6 {[%clk 0:00:10.1]} 50... Ne8 {[%clk 0:00:38]} 51. Rb1 {[%clk
0:00:10.2]} 51... Be7 {[%clk 0:00:36.2]} 52. Rg1 {[%clk 0:00:08.7]} 52... Bf8
{[%clk 0:00:36.8]} 53. Ng8 {[%clk 0:00:07.6]} 53... Bb4 {[%clk 0:00:35.2]} 54.
Ne2 {[%clk 0:00:06.3]} 54... Rxa4 {[%clk 0:00:34.6]} 55. Nf4 {[%clk 0:00:06.8]}
55... Ra3+ {[%clk 0:00:34.4]} 56. Kf2 {[%clk 0:00:06.9]} 56... Ra2+ {[%clk
0:00:34.4]} 57. Kg3 {[%clk 0:00:06.4]} 57... Bd6 {[%clk 0:00:34.7]} 58. Kg4
{[%clk 0:00:06.2]} 58... Bxf4 {[%clk 0:00:31.7]} 59. Kxf4 {[%clk 0:00:07.1]}
59... Ra4 {[%clk 0:00:30.9]} 60. Re1 {[%clk 0:00:05.4]} 60... Rxd4+ {[%clk
0:00:27.9]} 61. Kg3 {[%clk 0:00:06.1]} 61... Nd6 {[%clk 0:00:27.1]} 62. Re7+
{[%clk 0:00:03.8]} 62... Kd8 {[%clk 0:00:26.5]} 63. Rxh7 {[%clk 0:00:04.6]}
63... Nxf5+ {[%clk 0:00:27]} 64. Kh3 {[%clk 0:00:05.2]} 64... b5 {[%clk
0:00:24]} 65. Nxf6 {[%clk 0:00:05.3]} 65... b4 {[%clk 0:00:24.5]} 66. h5 {[%clk
0:00:04.8]} 66... Kc8 {[%clk 0:00:20.7]} 67. Rf7 {[%clk 0:00:03.5]} 67... b3
{[%clk 0:00:18.9]} 68. Ng4 {[%clk 0:00:02.8]} 68... b2 {[%clk 0:00:18.6]} 69.
Rxf5 {[%clk 0:00:02.4]} 69... b1=Q {[%clk 0:00:19]} 70. h6 {[%clk 0:00:02.9]}
70... Qh1+ {[%clk 0:00:19]} 71. Kg3 {[%clk 0:00:02.6]} 71... Rxg4+ {[%clk
0:00:19.3]} 72. fxg4 {[%clk 0:00:02.7]} 72... Qxh6 {[%clk 0:00:20]} 0-1